bitfinex/quotes_ETHUSD_20250702
["timestamp","ask_amount","ask_price","bid_price","bid_amount"]
[1751426574655,6.734,2433.0,2432.9,0.2048]
[1751426576071,7.69248,2433.0,2432.9,0.2048]
[1751426576226,7.69248,2433.0,2432.7,0.2048]
[1751426577152,6.734,2433.0,2432.7,0.2048]
[1751426578368,6.734,2433.0,2432.2,0.8257]
[1751426578731,6.734,2433.0,2432.0,0.769]
[1751426579057,0.8228,2432.9,2432.0,0.769]
[1751426579254,0.8228,2432.9,2432.0,0.789]
[1751426579449,1.78528,2432.9,2432.0,0.789]
[1751426579960,8.802,2432.8,2432.0,0.789]
[1751426580783,0.55,2433.3,2432.0,0.789]
[1751426580960,0.7738,2433.2,2432.0,10.14623737]
[1751426581141,8.801,2433.1,2432.1,10.0]
[1751426583485,8.801,2433.0,2432.1,10.0]
[1751426583689,8.801,2433.0,2432.2,2.01462374]
[1751426584084,8.801,2433.0,2432.0,0.789]
[1751426584270,0.7641,2432.9,2432.0,0.789]
[1751426585081,8.801,2432.8,2432.0,0.789]
[1751426586585,0.7574,2432.7,2432.0,0.02]
[1751426586784,9.75484,2432.6,2432.0,0.02]
[1751426588300,9.95964,2432.6,2432.2,0.2048]
[1751426588602,1.74170222,2433.3,2432.3,10.12093737]
[1751426588769,8.824,2433.2,2432.9,0.2048]
[1751426590080,0.7574,2433.3,2432.9,0.2048]
[1751426590081,8.826,2433.1,2432.9,0.2048]
[1751426590277,0.7574,2433.3,2432.9,0.2048]
[1751426590596,8.843,2433.0,2432.9,0.2048]
[1751426592585,8.84,2433.0,2432.9,0.2048]
[1751426594307,0.7674,2433.3,2432.9,0.2048]
[1751426594607,8.84,2433.2,2432.9,0.2048]
[1751426595005,8.837,2433.1,2432.9,0.2048]
[1751426595203,9.79744,2433.1,2432.9,0.2048]
[1751426595376,9.79744,2433.1,2432.7,0.2048]
[1751426596482,0.7805,2433.0,2432.7,0.2048]
[1751426597112,0.9853,2433.0,2432.6,0.2048]
[1751426603182,8.833,2432.9,2432.6,0.2048]
[1751426604394,8.829,2432.8,2432.6,0.2048]
[1751426606316,0.9853,2433.0,2432.6,0.2048]
[1751426606690,8.832,2432.9,2432.6,0.2048]
[1751426607399,8.831,2432.8,2432.6,0.2048]
[1751426608021,8.83,2432.7,2432.6,0.2048]
[1751426609315,9.713,2432.7,2432.6,0.2048]
[1751426609486,10.5214,2432.7,2432.6,0.2048]
[1751426609689,9.6384,2432.7,2432.6,0.2048]
[1751426609929,0.7968,2432.9,2432.6,0.2048]
[1751426610091,8.831,2432.7,2432.6,0.2048]
[1751426610604,8.832,2432.7,2432.6,0.2048]
[1751426610821,8.833,2432.7,2432.6,0.2048]
[1751426613935,0.7959,2432.6,2432.0,0.02]
[1751426614249,7.2955459,2432.6,2432.0,0.02]
[1751426615053,8.89,2432.5,2432.0,0.02]
[1751426616324,2.084,2432.4,2432.0,0.7937]
[1751426616525,0.7959,2432.6,2432.0,1.87507]
[1751426616828,6.803,2432.3,2432.0,1.87507]
[1751426617519,0.7959,2432.6,2432.0,1.87507]
[1751426617829,6.803,2432.5,2432.0,11.87507]
[1751426618024,6.803,2432.5,2432.1,1.83947159]
[1751426618437,6.803,2432.5,2432.1,11.83947159]
[1751426619459,0.7959,2432.6,2432.1,11.83947159]
[1751426619663,6.801,2432.4,2432.1,11.83947159]
[1751426623035,6.795,2432.3,2432.1,11.83947159]
[1751426623970,6.795,2432.3,2432.2,0.2048]
[1751426624975,6.793,2432.3,2432.2,0.2048]
[1751426627104,0.814,2432.9,2432.2,1.59673416]
[1751426627397,6.786,2432.8,2432.4,6.4996459]
[1751426627558,6.786,2432.7,2432.4,6.4996459]
[1751426627752,0.814,2433.1,2432.4,7.36643391]
[1751426627960,2.114,2433.3,2432.7,10.7763]
[1751426628411,6.789,2433.2,2432.7,10.7763]
[1751426628970,6.794,2433.1,2432.7,10.7763]
[1751426629175,6.794,2433.1,2432.7,0.7763]
[1751426630284,6.794,2433.1,2432.7,1.85393]
[1751426630608,6.795,2433.0,2432.7,1.85393]
[1751426630801,6.794,2432.9,2432.7,11.85393]
[1751426632021,6.794,2433.0,2432.7,11.85393]
[1751426632228,0.01,2433.3,2432.7,11.85393]
[1751426632410,6.792,2433.0,2432.8,11.83535759]
[1751426632723,6.792,2433.0,2432.8,1.83535759]
[1751426633731,0.01,2433.3,2432.9,0.7898]
[1751426634203,6.802,2433.3,2432.9,0.7898]
[1751426634402,0.01,2433.3,2433.2,1.3398]
[1751426634610,0.01,2433.3,2433.2,2.12374459]
[1751426635190,0.01,2433.3,2433.2,1.57374459]
[1751426635891,0.01,2433.3,2433.2,0.78394459]
[1751426636096,0.01,2433.3,2433.0,0.7895]
[1751426637324,0.01,2433.3,2433.2,0.2048]
[1751426639389,0.01,2433.3,2432.8,0.7995]
[1751426639699,0.01,2433.3,2433.1,0.2048]
[1751426641195,0.01,2433.3,2433.2,0.2048]
[1751426641395,0.01,2433.3,2433.2,12.73082459]
[1751426642136,0.01,2433.3,2433.2,19.23047049]
[1751426642447,0.2248056,2433.4,2433.3,1.3112]
[1751426645202,0.2248056,2433.4,2433.3,11.3112]
[1751426649311,0.2348056,2433.4,2433.3,11.3112]
[1751426649520,0.2348056,2433.4,2433.3,13.11276459]
[1751426649727,0.01,2433.9,2433.5,0.55]
[1751426649925,0.01,2433.9,2433.8,0.2048]
[1751426650112,0.01,2433.9,2433.8,1.5501]
[1751426650314,0.005,2434.4,2433.9,11.3453]
[1751426650510,0.005,2434.4,2433.9,10.7953]
[1751426650734,0.005,2434.4,2434.1,10.0]
[1751426650903,0.005,2434.4,2433.8,1.83451]
[1751426650904,0.005,2434.4,2434.3,0.8311]
[1751426651245,0.005,2434.4,2434.3,10.8311]
[1751426651419,0.005,2434.4,2434.3,12.61917459]
[1751426651601,2.103,2435.1,2434.4,0.55]
[1751426651801,2.103,2435.1,2434.6,0.8046]
[1751426652230,0.8141,2435.0,2434.4,10.0]
[1751426653235,1.11392847,2435.2,2434.4,10.0]
[1751426653426,1.11392847,2435.2,2434.5,1.26142746]
[1751426653933,1.11392847,2435.2,2434.5,1.56541814]
[1751426654315,1.11392847,2435.2,2434.5,0.30399068]
[1751426654629,1.11392847,2435.2,2434.3,0.8262]
[1751426655301,0.30972847,2435.2,2434.1,16.855]
[1751426655502,0.30972847,2435.2,2434.5,0.7994]
[1751426656034,0.30972847,2435.2,2434.7,0.8169]
[1751426656238,0.30972847,2435.2,2435.1,1.3669]
[1751426656457,1.63844946,2436.6,2435.1,1.3669]
[1751426656458,1.23344526,2436.8,2435.8,0.7776]
[1751426656634,0.97946345,2437.0,2435.8,0.7776]
[1751426656635,2.01804526,2437.0,2436.4,10.0]
[1751426656800,2.01804526,2437.0,2435.8,0.7776]
[1751426657122,2.01804526,2437.0,2435.7,0.3145412]
[1751426657123,9.341126,2436.8,2435.7,0.3145412]
[1751426657327,9.341126,2436.8,2435.1,0.7776]
[1751426657328,0.7846,2436.6,2435.1,0.7776]
[1751426657517,0.7846,2436.4,2435.1,1.08001736]
[1751426657721,3.12456,2436.3,2435.1,1.08001736]
[1751426658305,0.7693,2436.2,2435.1,1.08001736]
[1751426658945,2.138,2436.1,2435.1,1.08001736]
[1751426660022,2.138,2436.0,2435.1,1.08001736]
[1751426660224,2.138,2436.0,2435.8,0.2048]
[1751426660429,0.2138,2435.9,2435.8,0.2048]
[1751426661317,0.8057,2435.8,2435.4,0.2048]
[1751426661537,0.2048,2435.7,2435.3,0.2048]
[1751426662226,0.8199,2435.5,2434.2,0.8004]
[1751426662425,0.2048,2435.2,2434.7,0.2048]
[1751426662951,0.8199,2435.1,2434.7,0.2048]
[1751426664346,2.138,2435.0,2434.7,0.2048]
[1751426664846,0.8199,2435.1,2434.7,0.2048]
[1751426665045,2.138,2435.0,2434.3,10.0]
[1751426665251,0.8199,2435.1,2434.9,0.2048]
[1751426665823,2.138,2435.2,2434.9,0.2048]
[1751426666717,3.14172,2435.2,2434.9,0.2048]
[1751426667112,3.34652,2435.2,2434.8,0.2048]
[1751426667323,1.20852,2435.2,2434.8,0.2048]
[1751426667552,9.075,2435.1,2434.8,0.2048]
[1751426668642,0.7521,2435.0,2434.8,0.2048]
[1751426669426,0.7521,2435.0,2434.0,0.8216]
[1751426669957,0.2048,2434.9,2434.4,0.2048]
[1751426670157,0.818,2434.8,2434.4,0.2048]
[1751426670825,9.895,2434.8,2434.4,0.2048]
[1751426671458,9.077,2434.7,2433.8,10.55]
[1751426671647,2.138,2434.7,2434.6,0.2048]
[1751426672543,9.892,2434.8,2434.6,0.2048]
[1751426673155,0.2048,2435.0,2434.6,0.2048]
[1751426673367,9.074,2434.9,2434.6,0.2048]
[1751426674072,9.073,2434.9,2434.6,0.2048]
[1751426675375,10.07584,2434.9,2434.6,0.2048]
[1751426676667,10.07584,2434.9,2434.4,0.02]
[1751426676870,0.7994,2434.8,2434.4,0.2248]
[1751426677666,0.2048,2434.6,2434.4,0.02]
[1751426678872,9.8848,2434.5,2434.4,0.02]
[1751426679047,10.0896,2434.5,2434.4,0.02]
[1751426679688,10.6396,2434.5,2434.4,0.02]
[1751426679886,1.0196,2434.5,2434.4,0.02]
[1751426680071,10.0856,2434.5,2434.4,0.02]
[1751426680246,11.09416,2434.5,2434.4,0.02]
[1751426683144,2.02816,2434.5,2434.4,0.02]
[1751426683341,10.1236,2434.5,2434.4,0.02]
[1751426684446,29.684926,2434.5,2434.4,0.02]
[1751426684644,29.675926,2434.5,2434.4,0.02]
[1751426684878,11.2398,2434.5,2434.4,0.02]
[1751426685040,20.3408,2434.5,2434.4,0.02]
[1751426685247,22.47301091,2434.5,2434.4,0.02]
[1751426685748,22.47501091,2434.5,2434.4,0.02]
[1751426686777,22.47601091,2434.5,2434.4,0.02]
[1751426688976,13.37201091,2434.5,2434.4,0.02]
[1751426689282,22.46901091,2434.5,2434.4,0.02]
[1751426691762,22.47501091,2434.5,2434.4,0.02]
[1751426696667,23.45769595,2434.5,2434.4,0.02]
[1751426701879,23.45769595,2434.5,2433.4,0.02]
[1751426701880,0.55,2434.2,2433.4,0.02]
[1751426702057,6.49640432,2433.7,2433.4,0.02]
[1751426702258,9.077,2433.6,2433.4,0.02]
[1751426702493,6.899,2433.5,2433.4,0.02]
[1751426703065,7.7141,2433.5,2433.4,0.02]
[1751426703385,8.70331,2433.5,2433.4,0.02]
[1751426706607,1.80431,2433.5,2433.4,0.02]
[1751426706820,9.8821,2433.5,2433.4,0.02]
[1751426707497,10.4321,2433.5,2433.4,0.02]
[1751426708090,1.3651,2433.5,2433.4,0.02]
[1751426708408,3.5431,2433.5,2433.4,0.02]
[1751426708609,2.178,2433.5,2433.4,0.02]
[1751426708809,9.2738,2433.5,2433.4,0.02]
[1751426709293,10.20118,2433.5,2433.4,0.02]
[1751426709703,2.48898,2433.5,2433.4,0.02]
[1751426709882,10.6316,2433.5,2433.4,0.02]
[1751426711214,11.61628288,2433.5,2433.4,0.02]
[1751426712307,51.61628288,2433.5,2433.4,0.02]
[1751426712508,56.79342814,2433.5,2433.4,0.02]
[1751426712709,55.55998288,2433.5,2433.4,0.02]
[1751426713015,63.88544325,2433.5,2433.4,0.02]
[1751426713322,62.24699379,2433.5,2433.4,0.02]
[1751426713822,48.83599379,2433.5,2433.4,0.02]
[1751426714122,57.88499379,2433.5,2433.4,0.02]
[1751426715287,27.88499379,2433.5,2433.4,0.02]
[1751426715630,34.341,2433.4,2432.1,0.02]
[1751426715830,10.16127776,2432.2,2432.1,0.02]
[1751426716055,10.4146,2432.2,2432.1,0.02]
[1751426716229,0.98468288,2432.6,2432.1,0.02]
[1751426716412,0.7897,2432.6,2432.2,2.44398188]
[1751426716612,9.069,2432.5,2432.2,2.44398188]
[1751426716793,9.069,2432.5,2432.1,0.02]
[1751426717407,0.7897,2432.6,2432.1,0.02]
[1751426717609,9.067,2432.5,2432.1,0.02]
[1751426718103,0.55,2432.4,2432.1,0.02]
[1751426720333,1.59067,2432.4,2432.1,0.02]
[1751426722147,0.55,2432.7,2432.1,0.02]
[1751426722350,2.158,2432.3,2432.1,0.02]
[1751426722522,0.55,2432.7,2432.2,0.7815]
[1751426722715,9.058,2432.6,2432.2,0.7815]
[1751426722928,10.10118,2432.6,2432.2,0.7815]
[1751426723350,6.898,2432.5,2432.2,0.7815]
[1751426723840,7.92,2432.9,2432.2,0.7815]
[1751426724009,2.158,2432.4,2432.2,0.7815]
[1751426724343,9.054,2432.3,2432.2,0.7815]
[1751426724539,9.884,2432.8,2432.2,0.7815]
[1751426724726,2.158,2432.7,2432.2,1.36365]
[1751426724932,6.899,2432.6,2432.3,0.7693]
[1751426725117,9.884,2432.8,2432.3,0.7693]
[1751426725322,9.056,2432.5,2432.3,0.7693]
[1751426725638,9.2608,2432.5,2432.3,0.7693]
[1751426726013,9.2608,2432.5,2432.3,1.926925]
[1751426726946,9.884,2432.8,2432.4,0.7678]
[1751426727236,9.884,2432.8,2432.5,0.7678]
[1751426727442,9.057,2432.7,2432.5,0.7678]
[1751426728442,9.884,2432.8,2432.5,0.7678]
[1751426728619,6.896,2432.7,2432.6,1.0309]
[1751426733438,6.885,2432.7,2432.6,1.0309]
[1751426734143,9.884,2432.8,2432.6,1.0309]
[1751426734310,6.885,2432.7,2432.6,1.0309]
[1751426736245,9.884,2432.8,2432.6,1.0309]
[1751426736434,6.878,2432.7,2432.6,7.53022685]
[1751426736615,6.878,2432.7,2432.6,17.53022685]
[1751426737017,9.884,2432.8,2432.7,10.7608]
[1751426737215,16.762,2432.8,2432.7,0.7608]
[1751426737529,0.2148,2433.4,2432.7,0.7608]
[1751426737728,2.157,2433.1,2432.9,0.7556]
[1751426737928,6.875,2433.0,2432.9,0.9604]
[1751426738135,2.157,2433.1,2432.9,0.9604]
[1751426738457,6.875,2433.0,2432.9,0.9604]
[1751426741347,0.2148,2433.4,2432.9,0.9604]
[1751426741542,2.157,2433.0,2432.9,0.9604]
[1751426741746,9.023,2433.0,2432.9,0.9604]
[1751426742127,9.023,2433.0,2432.9,0.2048]
[1751426742334,9.9253,2433.0,2432.6,0.9604]
[1751426742534,9.023,2433.0,2432.6,0.9604]
[1751426743242,9.023,2433.0,2432.5,0.02]
[1751426743554,9.2118,2432.9,2432.5,0.02]
[1751426743728,6.864,2432.8,2432.5,0.02]
[1751426744458,9.007,2432.7,2432.5,0.02]
[1751426745456,2.143,2433.0,2432.6,10.2048]
[1751426745657,6.862,2432.9,2432.7,2.44941269]
[1751426745859,6.862,2432.9,2432.8,10.2048]
[1751426746156,2.143,2433.0,2432.8,10.2048]
[1751426746348,6.863,2432.9,2432.8,10.2048]
[1751426748162,0.01,2433.4,2432.8,10.2048]
[1751426748328,2.143,2433.0,2432.9,0.7749]
[1751426748528,2.143,2433.0,2432.9,0.9797]
[1751426749230,9.0,2433.0,2432.9,0.9797]
[1751426750466,0.2148,2433.4,2432.9,0.9797]
[1751426750634,8.997,2433.0,2432.9,0.9797]
[1751426750833,2.143,2433.0,2432.9,2.70856808]
[1751426751030,8.996,2433.0,2432.9,2.91336808]
[1751426752565,2.143,2433.1,2433.0,10.0]
[1751426752735,8.991,2433.1,2433.0,10.0]
[1751426754774,8.991,2433.1,2432.9,0.9797]
[1751426757543,8.991,2433.1,2432.9,0.2048]
[1751426759872,8.986,2433.0,2432.9,0.2048]
[1751426760382,0.2148,2433.4,2432.9,0.2048]
[1751426760560,8.984,2433.3,2433.1,10.0]
[1751426761176,8.984,2433.3,2433.0,0.8249]
[1751426761874,0.01,2433.4,2433.0,0.8249]
[1751426762260,8.984,2433.3,2433.0,0.8249]
[1751426762781,9.8834,2433.3,2432.8,0.8025]
[1751426763592,9.8834,2433.3,2432.8,0.02]
[1751426766051,6.836,2433.2,2432.8,0.02]
[1751426769669,0.7661,2433.1,2432.8,0.02]
[1751426770075,1.83055,2433.1,2432.8,0.02]
[1751426770786,0.7705,2432.9,2432.8,0.02]
[1751426771404,2.30700126,2432.9,2432.8,0.02]
[1751426773471,11.26000126,2432.9,2432.8,0.02]
[1751426776581,2.30700126,2432.9,2432.8,0.02]
[1751426776778,11.25757781,2432.9,2432.8,0.02]
[1751426776982,3.29407907,2432.9,2432.8,0.02]
[1751426777185,0.7705,2432.9,2432.8,0.02]
[1751426777498,8.952,2432.9,2432.8,0.02]
[1751426777887,2.124,2432.9,2432.8,0.02]
[1751426778094,8.951,2432.9,2432.8,0.02]
[1751426780517,0.2048,2433.1,2432.8,0.02]
[1751426780718,1.29519,2433.1,2432.8,0.02]
[1751426781021,8.947,2433.0,2432.8,0.8315]
[1751426781321,6.823,2432.9,2432.8,0.8315]
[1751426781535,2.124,2433.0,2432.8,0.8315]
[1751426781693,6.822,2432.9,2432.8,0.8315]
[1751426781893,8.946,2432.9,2432.8,0.8315]
[1751426782300,2.124,2432.9,2432.8,12.76938269]
[1751426782503,8.944,2432.9,2432.8,19.26870954]
[1751426783021,8.944,2432.9,2432.8,12.76938269]
[1751426783421,8.947,2432.9,2432.8,12.76938269]
[1751426785126,8.947,2432.9,2432.8,10.2248]
[1751426785502,8.947,2432.9,2432.8,10.02]
[1751426787730,9.7397,2432.9,2432.8,0.02]
[1751426796437,9.7267,2432.9,2432.8,0.02]
[1751426797438,9.7247,2432.9,2432.8,0.02]
[1751426798221,10.79558063,2432.9,2432.8,0.02]
[1751426801551,10.79158063,2432.9,2432.8,0.02]
[1751426804037,10.79158063,2432.9,2432.8,0.02]
[1751426806233,2.105,2432.9,2432.8,0.02]
[1751426806433,2.105,2432.9,2432.8,7.29362685]
[1751426806666,2.105,2432.9,2432.8,7.49842685]
[1751426806866,8.904,2432.9,2432.8,7.49842685]
[1751426810371,8.904,2432.9,2432.8,0.9991]
[1751426810568,8.904,2432.9,2432.8,0.2248]
[1751426810767,8.904,2432.9,2432.8,0.02]
[1751426810992,2.105,2432.9,2432.8,0.02]
[1751426811294,8.899,2432.9,2432.8,0.02]
[1751426813541,8.895,2432.9,2432.8,0.02]
[1751426815766,0.2048,2433.0,2432.8,0.02]
[1751426815967,8.891,2432.9,2432.8,0.02]
[1751426819249,0.2048,2433.0,2432.8,0.02]
[1751426819449,8.888,2432.9,2432.8,0.02]
[1751426819666,0.2048,2433.0,2432.8,0.02]
[1751426820002,2.105,2432.9,2432.8,0.02]
[1751426820285,8.885,2432.9,2432.8,0.02]
[1751426820478,8.884,2432.9,2432.8,0.02]
[1751426821857,8.882,2432.9,2432.8,0.2248]
[1751426824795,10.0868,2433.2,2432.8,0.2248]
[1751426824953,8.878,2432.9,2432.8,0.2248]
[1751426827785,10.0868,2433.2,2432.8,0.2248]
[1751426827964,8.877,2433.1,2432.8,0.2248]
[1751426832088,10.0868,2433.2,2432.9,10.7556]
[1751426832298,6.772,2433.1,2433.0,6.70412685]
[1751426834166,6.772,2433.1,2433.0,0.2048]
[1751426834571,9.882,2433.2,2433.0,0.2048]
[1751426834894,6.772,2433.1,2433.0,0.2048]
[1751426841799,9.882,2433.2,2433.0,0.2048]
[1751426841996,8.862,2433.1,2433.0,0.2048]
[1751426842200,8.862,2433.1,2433.0,0.2248]
[1751426843980,9.882,2433.2,2433.0,0.2248]
[1751426844181,8.862,2433.1,2433.0,0.2248]
[1751426846218,9.882,2433.2,2433.0,0.2248]
[1751426846408,8.862,2433.1,2433.0,0.2248]
[1751426849017,9.882,2433.2,2433.0,0.2248]
[1751426849188,8.862,2433.1,2433.0,0.2248]
[1751426849613,9.882,2433.2,2433.0,0.2248]
[1751426849910,9.882,2433.2,2433.1,10.7773]
[1751426850078,16.653,2433.2,2433.1,0.9821]
[1751426850807,9.882,2433.2,2433.1,0.9821]
[1751426850978,16.652,2433.2,2433.1,0.9821]
[1751426851308,16.652,2433.2,2433.1,1.73224268]
[1751426853184,0.01,2433.4,2433.1,1.73224268]
[1751426853383,0.01,2433.4,2433.3,0.2048]
[1751426853721,8.871,2433.4,2433.3,0.2048]
[1751426853915,8.871,2433.4,2433.0,6.51932685]
[1751426854215,8.871,2433.4,2433.2,0.2048]
[1751426860532,8.871,2433.4,2433.2,10.2048]
[1751426861739,8.871,2433.4,2433.2,0.2048]
[1751426869524,0.8133,2433.3,2433.0,0.02]
[1751426872047,8.857,2433.2,2433.0,0.02]
[1751426873038,0.8133,2433.3,2433.0,0.02]
[1751426873243,8.856,2433.1,2433.0,0.02]
[1751426876034,9.6624,2433.1,2433.0,0.02]
[1751426876763,8.856,2433.1,2433.0,0.02]
[1751426880950,0.2048,2433.2,2433.0,0.02]
[1751426881172,8.856,2433.1,2433.0,0.02]
[1751426885190,0.2048,2433.2,2433.0,0.02]
[1751426885495,8.855,2433.1,2433.0,0.02]
[1751426886059,8.855,2433.1,2433.0,16.51932685]
[1751426886367,8.855,2433.1,2433.0,16.72412685]
[1751426888162,2.089,2433.2,2433.1,10.0]
[1751426888494,8.854,2433.2,2433.0,6.72412685]
[1751426889286,8.854,2433.2,2433.0,0.2248]
[1751426896405,0.01,2433.4,2433.0,0.2248]
[1751426896609,8.85,2433.3,2433.0,0.2248]
[1751426897508,0.01,2433.4,2433.0,0.2248]
[1751426897681,8.85,2433.2,2433.0,0.2248]
[1751426899822,0.01,2433.4,2433.0,0.2248]
[1751426900021,8.85,2433.3,2433.0,0.2248]
[1751426900897,9.83895,2433.3,2433.0,0.2248]
[1751426901090,0.9755,2433.2,2433.0,0.02]
[1751426908701,0.7707,2433.2,2433.0,0.02]
[1751426908894,0.2048,2433.1,2433.0,0.02]
[1751426912737,0.01,2433.4,2433.0,0.02]
[1751426912738,0.01,2433.4,2433.1,0.7674]
[1751426913036,0.01,2433.4,2433.3,7.47152685]
[1751426913223,6.77,2433.4,2433.3,17.47152685]
[1751426914027,0.01,2433.4,2433.3,17.47152685]
[1751426914233,6.77,2433.4,2433.3,17.47152685]
[1751426919633,0.01,2433.4,2433.3,17.47152685]
[1751426919837,6.768,2433.4,2433.3,19.32860154]
[1751426920058,6.768,2433.4,2433.3,12.82927469]
[1751426920265,6.768,2433.4,2433.3,10.2048]
[1751426920446,6.768,2433.4,2433.0,0.02]
[1751426920653,0.7901,2433.3,2433.0,0.02]
[1751426924028,8.843,2433.2,2433.0,0.02]
[1751426925338,8.844,2433.1,2433.0,0.02]
[1751426927122,0.01,2433.4,2433.0,0.02]
[1751426927452,8.84,2433.3,2433.0,0.02]
[1751426928653,9.80642,2433.3,2433.0,0.02]
[1751426930372,0.2048,2433.2,2433.0,0.02]
[1751426932630,9.80642,2433.3,2433.0,0.02]
[1751426932631,0.8176,2433.1,2433.0,0.02]
[1751426934249,9.6556,2433.1,2433.0,0.02]
[1751426934679,10.62116,2433.1,2433.0,0.02]
[1751426936630,9.80356,2433.1,2433.0,0.02]
[1751426940927,8.838,2433.1,2433.0,0.02]
[1751426942636,0.826,2433.3,2433.0,0.02]
[1751426942843,8.837,2433.1,2433.0,0.02]
[1751426946935,8.836,2433.1,2433.0,0.02]
[1751426950314,16.70322685,2433.1,2433.0,0.02]
[1751426950622,19.36020592,2433.1,2433.0,0.02]
[1751426952249,31.61420592,2433.1,2433.0,0.02]
[1751426953146,11.94487907,2433.1,2433.0,0.02]
[1751426953458,10.8209,2433.1,2433.0,0.02]
[1751426953659,17.5729,2433.1,2433.0,0.02]
[1751426953963,16.9588,2433.1,2433.0,0.02]
[1751426955058,8.835,2433.1,2433.0,0.02]
[1751426955621,0.9863777,2433.1,2433.0,0.02]
[1751426955816,9.8203777,2433.1,2433.0,0.02]
[1751426958132,8.834,2433.1,2433.0,0.02]
[1751426959047,8.83,2433.1,2433.0,0.02]
[1751426960233,8.829,2433.1,2433.0,0.02]
[1751426962238,0.2048,2433.2,2433.0,0.02]
[1751426962239,2.079,2433.2,2433.0,10.02]
[1751426962436,0.01,2433.4,2433.3,0.8138]
[1751426962657,6.749,2433.7,2433.4,0.8138]
[1751426962856,6.749,2433.7,2433.6,10.0]
[1751426963032,0.2048,2434.0,2433.6,0.2048]
[1751426963237,6.749,2433.7,2433.4,0.8138]
[1751426963559,2.079,2433.8,2433.5,0.2048]
[1751426964270,0.2048,2433.7,2433.2,1.0105]
[1751426964468,0.55,2433.7,2433.0,0.8257]
[1751426964667,0.2048,2433.4,2433.0,0.02]
[1751426966062,8.827,2433.3,2433.0,0.02]
[1751426968391,0.2048,2433.2,2433.0,0.02]
[1751426972903,6.746,2433.1,2433.0,0.02]
[1751426980294,6.745,2433.1,2433.0,0.02]
[1751426980497,0.2048,2433.2,2433.0,0.02]
[1751426980677,6.745,2433.1,2433.0,0.02]
[1751426992102,0.2048,2433.2,2433.0,0.02]
[1751426992398,6.742,2433.1,2433.0,0.02]
[1751427002106,2.2798,2433.2,2433.0,0.02]
[1751427002107,0.2048,2433.2,2433.0,0.02]
[1751427002305,6.74,2433.1,2433.0,0.02]
[1751427002909,7.5378,2433.1,2433.0,0.02]
[1751427003105,8.51956,2433.1,2433.0,0.02]
[1751427003601,9.06956,2433.1,2433.0,0.02]
[1751427005682,10.05704752,2433.1,2433.0,0.02]
[1751427006087,3.31704752,2433.1,2433.0,0.02]
[1751427006298,11.14456,2433.1,2433.0,0.02]
[1751427016013,30.0504375,2433.1,2433.0,0.02]
[1751427017930,21.2354375,2433.1,2433.0,0.02]
[1751427018101,30.0464375,2433.1,2433.0,0.02]
[1751427018638,34.3794375,2433.1,2433.0,0.02]
[1751427019134,64.3794375,2433.1,2433.0,0.02]
[1751427020806,65.61120791,2433.1,2433.0,0.02]
[1751427023434,66.02310791,2433.1,2433.0,0.02]
[1751427023937,56.75120791,2433.1,2433.0,0.02]
[1751427024116,65.97310791,2433.1,2433.0,0.02]
[1751427024734,64.7413375,2433.1,2433.0,0.02]
[1751427025030,55.5194375,2433.1,2433.0,0.02]
[1751427025237,64.7413375,2433.1,2433.0,0.02]
[1751427025438,66.37978696,2433.1,2433.0,0.02]
[1751427028349,64.7413375,2433.1,2433.0,0.02]
[1751427028644,66.38148703,2433.1,2433.0,0.02]
[1751427030017,64.7413375,2433.1,2433.0,0.02]
[1751427030217,67.1680524,2433.1,2433.0,0.02]
[1751427036158,57.9461524,2433.1,2433.0,0.02]
[1751427036340,67.1670524,2433.1,2433.0,0.02]
[1751427039254,66.51847925,2433.1,2433.0,0.02]
[1751427039460,73.66537925,2433.1,2433.0,0.02]
[1751427041169,43.66537925,2433.1,2433.0,0.02]
[1751427041352,73.66537925,2433.1,2433.0,0.02]
[1751427041874,71.23866435,2433.1,2433.0,0.02]
[1751427043369,5.2959,2432.9,2432.8,0.02]
[1751427043575,60.56481958,2432.9,2432.8,0.02]
[1751427043857,71.36051958,2432.9,2432.8,0.02]
[1751427044357,73.82210154,2432.9,2432.8,0.02]
[1751427044729,71.36051958,2432.9,2432.8,0.02]
[1751427046466,73.82210154,2432.9,2432.8,0.02]
[1751427049280,71.36051958,2432.9,2432.8,0.02]
[1751427050456,41.36051958,2432.9,2432.8,0.02]
[1751427050785,71.36051958,2432.9,2432.8,0.02]
[1751427051092,81.24651958,2432.9,2432.8,0.02]
[1751427058398,14.884,2432.6,2432.5,0.02]
[1751427058577,30.31034435,2432.6,2432.5,0.02]
[1751427060507,38.23034435,2432.6,2432.5,0.02]
[1751427061084,31.7300175,2432.6,2432.5,0.02]